bitfinex/quotes_SOLUSD_20240712
["timestamp","ask_amount","ask_price","bid_price","bid_amount"]
[1720773706593,21.9833,135.81,135.77,25.7775]
[1720773706795,14.62,135.81,135.77,25.7775]
[1720773706977,14.62,135.81,135.77,18.4122]
[1720773707188,21.9829,135.82,135.78,7.3647]
[1720773708485,14.62,135.81,135.78,7.3647]
[1720773709105,21.9829,135.82,135.78,7.3647]
[1720773709493,20.9829,135.82,135.78,7.3647]
[1720773710099,45.0,135.84,135.79,18.4105]
[1720773710301,21.9818,135.84,135.8,7.3634]
[1720773710603,14.62,135.84,135.81,7.3632]
[1720773712085,21.9816,135.84,135.8,7.3635]
[1720773712286,7.3612,135.85,135.81,7.3631]
[1720773712599,14.62,135.85,135.8,14.62]
[1720773712818,14.62,135.85,135.82,7.3622]
[1720773714211,9.72041016,135.88,135.84,7.3616]
[1720773714389,14.62,135.87,135.84,7.3616]
[1720773714586,21.9799,135.87,135.83,25.7669]
[1720773715393,14.62,135.87,135.83,25.7669]
[1720773715611,7.3596,135.88,135.84,7.3615]
[1720773715807,14.62,135.87,135.84,7.3615]
[1720773716114,14.62,135.87,135.83,25.7669]
[1720773716414,14.62,135.86,135.8,63.32968696]
[1720773716583,14.62,135.85,135.81,7.3628]
[1720773716913,14.62,135.85,135.82,7.3624]
[1720773717492,21.9814,135.85,135.81,7.3629]
[1720773717692,14.62,135.84,135.81,7.3629]
[1720773718305,14.62,135.84,135.82,7.3626]
[1720773718515,14.62,135.84,135.81,7.363]
[1720773718894,14.62,135.84,135.8,32.4047]
[1720773719103,2.43983838,135.89,135.8,6.633]
[1720773719302,13.86021437,135.91,135.87,7.3598]
[1720773719303,7.70708657,135.91,135.87,7.3598]
[1720773719509,22.4041,135.92,135.87,25.7585]
[1720773719510,37.0241,135.92,135.87,25.7585]
[1720773719699,29.6667,135.92,135.87,25.7585]
[1720773719894,37.0243,135.92,135.87,25.7585]
[1720773720090,37.0243,135.92,135.87,18.3987]
[1720773720318,21.9776,135.92,135.88,7.3594]
[1720773720617,14.62,135.92,135.89,7.3588]
[1720773720794,14.62,135.92,135.88,7.3592]
[1720773720996,21.9773,135.92,135.88,7.3592]
[1720773721223,7.3568,135.93,135.88,7.3592]
[1720773721516,21.9781,135.91,135.87,25.7585]
[1720773721724,14.62,135.89,135.87,18.3987]
[1720773722392,7.358,135.91,135.87,25.7586]
[1720773722599,7.3571,135.93,135.88,7.3592]
[1720773722907,7.3573,135.92,135.87,25.7585]
[1720773723323,7.3573,135.92,135.88,7.3592]
[1720773724121,7.3573,135.92,135.87,25.7584]
[1720773724296,7.3573,135.92,135.88,7.3594]
[1720773725019,7.3579,135.91,135.87,25.7586]
[1720773725224,10.0,135.92,135.84,18.4027]
[1720773725519,60.8161,135.91,135.84,18.4027]
[1720773725706,7.3597,135.88,135.84,25.7639]
[1720773726420,7.3596,135.88,135.83,13.5792]
[1720773726613,7.3596,135.88,135.84,7.3615]
[1720773728128,7.3591,135.89,135.84,7.3615]
[1720773729028,7.3595,135.88,135.83,31.9846]
[1720773729228,7.3595,135.88,135.83,25.7671]
[1720773729601,7.36,135.87,135.83,25.7671]
[1720773729897,7.36,135.87,135.83,18.4052]
[1720773730110,7.36,135.87,135.83,25.7672]
[1720773730324,10.0,135.88,135.8,6.4278]
[1720773730514,7.3611,135.85,135.81,7.3628]
[1720773732110,7.3617,135.84,135.8,6.4278]
[1720773732524,7.3617,135.84,135.8,13.7912]
[1720773732846,7.3612,135.85,135.8,13.7912]
[1720773733434,7.3612,135.85,135.81,7.3631]
[1720773734540,60.06950852,135.87,135.82,7.3625]
[1720773735222,2.50923232,135.89,135.83,18.4048]
[1720773735433,7.3595,135.88,135.84,7.3612]
[1720773735611,7.359,135.89,135.84,7.3612]
[1720773735937,7.3595,135.88,135.84,7.3612]
[1720773736342,7.3591,135.89,135.84,7.3612]
[1720773736510,7.3591,135.89,135.85,7.361]
[1720773737430,7.3591,135.89,135.84,7.3614]
[1720773737727,7.3596,135.88,135.84,7.3614]
[1720773737927,7.3595,135.88,135.84,7.3614]
[1720773738641,7.359,135.89,135.84,7.3614]
[1720773738833,7.3595,135.88,135.84,7.3614]
[1720773739221,7.3589,135.89,135.85,7.361]
[1720773739825,7.3595,135.88,135.83,25.7665]
[1720773740029,7.3595,135.88,135.84,7.3615]
[1720773742043,7.3595,135.88,135.83,25.7667]
[1720773742243,7.3595,135.88,135.84,7.3615]
[1720773742625,21.9595,135.88,135.84,7.3615]
[1720773743540,18.396,135.9,135.83,25.7667]
[1720773743753,14.6,135.88,135.85,7.3606]
[1720773744041,25.95509019,135.91,135.86,22.16162394]
[1720773744042,14.6,135.91,135.86,22.16162394]
[1720773744229,14.6,135.91,135.86,20.6898]
[1720773744537,21.9576,135.92,135.87,32.9999]
[1720773744745,21.9576,135.92,135.87,18.3999]
[1720773745044,7.3576,135.92,135.88,7.3592]
[1720773745337,21.9569,135.93,135.89,7.3586]
[1720773745930,21.9569,135.93,135.88,14.6]
[1720773745931,21.9569,135.93,135.88,21.9592]
[1720773746142,21.9575,135.92,135.87,55.3896]
[1720773746349,7.70334695,135.95,135.87,25.7596]
[1720773746350,21.9579,135.91,135.87,25.7596]
[1720773746534,7.3579,135.91,135.87,25.7596]
[1720773747646,7.3584,135.9,135.87,18.3999]
[1720773748027,7.3584,135.9,135.86,13.4502]
[1720773749859,7.3594,135.89,135.84,41.5244]
[1720773750030,7.3594,135.88,135.84,25.7637]
[1720773751438,7.359,135.89,135.84,25.7637]
[1720773752344,16.0994,135.91,135.84,25.7637]
[1720773752345,7.3594,135.88,135.84,25.7637]
[1720773752747,16.0994,135.91,135.82,7.3623]
[1720773752748,7.3605,135.86,135.82,7.3623]
[1720773752950,10.0,135.88,135.81,18.4068]
[1720773753123,45.0,135.87,135.81,18.4068]
[1720773754145,7.3612,135.85,135.81,25.7696]
[1720773754528,7.3612,135.85,135.81,18.4068]
[1720773754731,7.3616,135.84,135.81,18.4068]
[1720773754939,45.0,135.87,135.81,18.4068]
[1720773755143,25.60204968,135.91,135.86,7.36]
[1720773755350,25.60204968,135.91,135.85,18.4024]
[1720773755658,7.3586,135.9,135.85,25.7633]
[1720773756035,7.3595,135.88,135.84,7.3614]
[1720773757161,7.359,135.89,135.84,25.7652]
[1720773757342,7.70748236,135.9,135.82,6.3531]
[1720773757544,18.24414968,135.91,135.82,6.3531]
[1720773757851,45.0,135.9,135.82,6.3531]
[1720773758261,52.3584,135.9,135.86,25.7614]
[1720773759134,52.3584,135.9,135.86,18.4011]
[1720773759731,45.0,135.9,135.87,7.3596]
[1720773759936,45.0,135.9,135.86,25.7614]
[1720773760533,18.24414968,135.91,135.86,18.4011]
[1720773760742,15.06355718,135.92,135.88,7.3593]
[1720773761057,7.3578,135.91,135.87,7.3599]
[1720773761754,7.70625718,135.92,135.87,7.3599]
[1720773762467,7.3579,135.91,135.87,7.3599]
[1720773762870,15.06365718,135.92,135.88,7.3594]
[1720773763555,7.70625718,135.92,135.88,18.3985]
[1720773763760,9.79669005,135.93,135.89,7.3585]
[1720773765266,9.79669005,135.93,135.88,25.7577]
[1720773765862,7.3574,135.92,135.88,25.7577]
[1720773770578,14.59,135.91,135.88,25.7577]
[1720773771878,14.59,135.91,135.86,15.66978524]
[1720773771879,14.59,135.91,135.85,33.5439]
[1720773772082,14.59,135.89,135.86,7.3605]
[1720773772952,14.59,135.89,135.85,18.4014]
[1720773773172,21.9489,135.89,135.85,25.7622]
[1720773773582,10.0,135.93,135.85,18.4014]
[1720773773583,14.59,135.88,135.85,18.4014]
[1720773774074,14.59,135.88,135.85,25.7623]
[1720773774476,14.59,135.87,135.85,25.7623]
[1720773777463,14.59,135.88,135.85,25.7623]
[1720773781670,14.59,135.89,135.87,25.7595]
[1720773782275,14.59,135.89,135.87,18.3999]
[1720773783374,14.59,135.89,135.87,25.7597]
[1720773783573,15.06479689,135.91,135.87,25.7597]
[1720773783574,14.59,135.9,135.88,7.3594]
[1720773784488,14.59,135.91,135.88,7.3594]
[1720773785097,21.9478,135.91,135.88,7.3594]
[1720773785593,14.59,135.9,135.87,25.7597]
[1720773785894,14.59,135.89,135.86,7.3602]
[1720773786290,14.59,135.88,135.86,7.3602]
[1720773786598,14.59,135.89,135.86,7.3602]
[1720773787609,14.59,135.88,135.85,7.3608]
[1720773787895,7.36,135.87,135.83,7.3619]
[1720773788103,14.59,135.86,135.83,7.3619]
[1720773788318,21.9506,135.86,135.82,13.7157]
[1720773788481,14.59,135.85,135.82,7.3626]
[1720773788803,14.59,135.84,135.82,7.3626]
[1720773789503,14.59,135.85,135.82,7.3626]
[1720773789798,14.59,135.84,135.82,7.3626]
[1720773791791,14.59,135.84,135.81,18.4068]
[1720773792880,14.59,135.84,135.81,25.7696]
[1720773793089,14.59,135.85,135.82,7.3626]
[1720773793288,14.59,135.85,135.83,7.362]
[1720773793499,14.59,135.85,135.81,18.4068]
[1720773793805,21.951,135.85,135.81,25.7695]
[1720773796004,7.70866613,135.88,135.81,18.4068]
[1720773796209,7.3603,135.87,135.83,7.3621]
[1720773796389,21.9503,135.87,135.83,7.3621]
[1720773796794,14.59,135.86,135.83,7.3621]
[1720773797003,14.59,135.86,135.81,32.9968]
[1720773797004,14.59,135.86,135.82,7.3624]
[1720773797203,20.22447036,135.88,135.81,25.7699]
[1720773797404,14.59,135.85,135.81,25.7699]
[1720773797796,21.9511,135.85,135.81,25.7699]
[1720773800418,14.59,135.84,135.81,25.7699]
[1720773801302,7.3622,135.83,135.79,6.6472]
[1720773801487,7.3622,135.83,135.78,18.4108]
[1720773801488,14.59,135.81,135.78,18.4108]
[1720773802494,14.59,135.81,135.79,7.3641]
[1720773802797,14.59,135.81,135.78,25.7755]
[1720773803003,14.59,135.8,135.78,25.7755]
[1720773804691,14.59,135.81,135.79,7.3643]
[1720773805605,14.59,135.81,135.78,25.7754]
[1720773808904,14.59,135.81,135.79,7.3641]
[1720773809307,14.59,135.81,135.78,25.7754]
[1720773809817,14.59,135.81,135.78,18.4108]
[1720773810007,14.59,135.81,135.79,7.3642]
[1720773810212,7.71087894,135.83,135.8,18.409]
[1720773810516,14.59,135.84,135.81,7.3631]
[1720773811790,2.46056265,135.85,135.82,18.4065]
[1720773812005,14.59,135.86,135.83,7.3619]
[1720773812206,34.59,135.85,135.83,7.3619]
[1720773812921,34.59,135.85,135.82,25.7689]
[1720773814317,7.36,135.87,135.83,7.362]
[1720773814528,21.95,135.87,135.83,7.362]
[1720773815717,7.36,135.87,135.83,7.362]
[1720773815919,14.59,135.87,135.84,7.3615]
[1720773816225,21.9496,135.88,135.84,7.3615]
[1720773817930,21.9496,135.88,135.83,21.9519]
[1720773819228,7.36,135.87,135.83,21.9519]
[1720773820623,14.59,135.88,135.84,18.4037]
[1720773821527,21.9497,135.88,135.84,25.7651]
[1720773821732,21.9497,135.88,135.84,18.4037]
[1720773822034,21.9497,135.88,135.84,25.7652]
[1720773822218,7.3597,135.88,135.84,40.3552]
[1720773822419,7.3597,135.88,135.84,25.7652]
[1720773823326,7.359,135.89,135.85,7.361]
[1720773823514,21.949,135.89,135.85,7.361]
[1720773824041,7.359,135.89,135.85,7.361]
[1720773826242,7.359,135.89,135.84,32.9937]
[1720773826243,7.3594,135.88,135.84,40.355]
[1720773826833,7.3594,135.88,135.84,25.765]
[1720773827440,21.949,135.89,135.85,7.361]
[1720773837363,7.3585,135.9,135.86,7.3604]
[1720773837554,21.9485,135.9,135.86,7.3604]
[1720773838266,7.3585,135.9,135.86,7.3604]
[1720773838440,21.9485,135.9,135.86,7.3604]
[1720773841037,7.70542179,135.93,135.87,36.3376]
[1720773841234,7.70542179,135.93,135.9,7.3578]
[1720773841543,7.70542179,135.93,135.87,21.7476]
[1720773841544,21.9475,135.92,135.88,7.3592]
[1720773843558,14.59,135.91,135.89,7.3588]
[1720773843748,14.59,135.92,135.89,7.3588]
[1720773843945,7.3569,135.93,135.9,7.3581]
[1720773843946,14.59,135.93,135.9,7.3581]
[1720773844360,14.59,135.93,135.91,7.3576]
[1720773844562,9.84963679,135.95,135.91,7.3576]
[1720773844745,14.59,135.94,135.91,7.3576]
[1720773844955,14.59,135.94,135.91,25.752]
[1720773845150,22.7924,135.96,135.92,7.3571]
[1720773845368,7.3552,135.96,135.92,7.3571]
[1720773845539,14.59,135.95,135.92,7.3571]
[1720773846159,10.2465461,135.97,135.93,18.3913]
[1720773846160,7.69943475,135.97,135.93,18.3913]
[1720773846350,7.69943475,135.97,135.94,7.3558]
[1720773846555,7.69943475,135.97,135.95,7.3554]
[1720773846862,14.59,135.98,135.95,7.3554]
[1720773847046,7.3537,135.99,135.94,8.66179121]
[1720773847244,7.3537,135.99,135.95,7.3555]
[1720773847466,34.59,135.98,135.95,7.3555]
[1720773847979,20.0,135.98,135.94,8.66189121]
[1720773848148,34.59,135.98,135.94,8.66189121]
[1720773848351,20.0,135.98,135.95,7.3552]
[1720773850146,14.59,136.0,135.97,7.3542]
[1720773850356,14.59,136.0,135.97,25.7405]
[1720773850575,14.59,136.01,135.97,25.7405]
[1720773851148,21.9424,136.01,135.97,18.3863]
[1720773851456,14.59,135.99,135.97,18.3863]
[1720773852773,14.59,135.99,135.97,25.7407]
[1720773853164,14.59,136.0,135.97,25.7407]
[1720773853571,7.3524,136.01,135.97,25.7407]
[1720773853765,21.9424,136.01,135.97,25.7407]
[1720773854774,9.87987517,136.02,135.98,7.354]
[1720773855156,14.59,136.01,135.97,25.7406]
[1720773855359,21.9424,136.01,135.97,25.7406]
[1720773857379,14.59,136.0,135.97,25.7406]
[1720773858480,14.59,136.01,135.98,7.354]
[1720773859767,21.9424,136.01,135.97,25.7406]
[1720773859960,14.59,136.0,135.97,25.7406]
[1720773860872,14.59,135.98,135.94,18.3902]
[1720773861076,14.59,135.97,135.94,25.7458]
[1720773861679,14.59,135.96,135.94,18.3902]
[1720773862086,14.59,135.96,135.94,25.7463]
[1720773862279,14.59,135.96,135.95,7.3556]
[1720773862468,14.59,135.97,135.95,7.3556]
[1720773863985,14.59,135.97,135.94,25.7462]
[1720773864379,14.59,135.97,135.95,7.3554]
[1720773865181,15.04845218,136.0,135.95,7.3554]
[1720773865387,34.59,135.99,135.96,18.3877]
[1720773866087,34.59,135.99,135.96,25.7427]
[1720773866987,34.59,135.99,135.96,18.3877]
[1720773867189,41.9436,135.99,135.96,18.3877]
[1720773867383,14.59,135.98,135.96,18.3877]
[1720773868484,34.59,135.99,135.96,25.7427]
[1720773868784,34.59,135.99,135.96,18.3877]
[1720773869170,41.9436,135.99,135.96,18.3877]
[1720773869591,14.59,135.98,135.95,7.3554]
[1720773870392,21.9441,135.98,135.94,7.356]
[1720773870574,14.59,135.97,135.94,7.356]
[1720773870775,14.59,135.97,135.95,7.3555]
[1720773871072,14.59,135.98,135.95,7.3555]
[1720773871473,14.59,135.98,135.94,7.3559]
[1720773872000,14.59,135.97,135.94,7.3559]
[1720773872691,7.3541,135.98,135.94,7.3559]
[1720773872992,14.59,135.98,135.95,7.3556]
[1720773873192,14.59,135.98,135.95,7.3555]
[1720773876373,14.59,135.98,135.95,25.7445]
[1720773876574,41.9436,135.99,135.95,25.7445]
[1720773877905,14.59,135.98,135.95,25.7445]
[1720773878794,14.59,135.98,135.92,30.3053]
[1720773878795,14.59,135.96,135.92,18.3923]
[1720773879097,14.59,135.94,135.92,25.7492]
[1720773879675,14.59,135.95,135.93,7.3566]
[1720773882699,14.59,135.96,135.93,7.3566]
[1720773882894,14.59,135.96,135.93,7.3562]
[1720773883090,14.59,135.96,135.94,7.356]
[1720773883280,37.54791782,135.99,135.95,7.3556]
[1720773883481,14.59,135.98,135.95,7.3556]
[1720773883899,21.944,135.98,135.94,25.7461]
[1720773884206,21.9445,135.97,135.94,18.3902]
[1720773884405,14.59,135.97,135.94,25.7462]
[1720773885987,14.59,135.97,135.94,18.3902]
[1720773886188,14.59,135.96,135.94,18.3902]
[1720773888389,14.59,135.97,135.94,18.3902]
[1720773891912,14.59,135.98,135.95,7.3553]
[1720773892207,21.944,135.98,135.94,25.7462]
[1720773892712,14.59,135.98,135.95,7.3556]
[1720773893392,21.9441,135.98,135.94,25.7462]
[1720773893599,14.59,135.97,135.94,25.7462]
[1720773895298,14.59,135.98,135.95,7.3555]
[1720773898309,10.28127118,136.0,135.96,7.3547]
[1720773898513,14.59,135.98,135.96,7.3547]
[1720773899718,14.59,135.98,135.95,7.3555]
[1720773900013,14.59,135.97,135.95,7.3555]
[1720773900321,14.59,135.97,135.94,25.7458]
[1720773901209,2.58485467,136.0,135.91,18.3933]
[1720773901210,14.59,135.95,135.91,18.3933]
[1720773901423,14.59,135.95,135.9,16.3885]
[1720773901591,14.59,135.95,135.93,7.3563]
[1720773901796,14.59,135.96,135.93,7.3563]
[1720773902598,7.3541,135.98,135.94,7.3561]
[1720773902805,34.59,135.97,135.95,7.3555]
[1720773902998,14.59,135.98,135.96,7.3545]
[1720773903213,14.59,135.99,135.97,7.3544]
[1720773903697,14.59,135.99,135.96,25.7425]
[1720773904111,14.59,135.98,135.95,7.3555]
[1720773904313,21.944,135.98,135.94,25.7463]
[1720773904511,14.59,135.97,135.94,25.7463]
[1720773904707,14.59,135.96,135.91,18.3932]
[1720773904916,14.59,135.95,135.91,18.3932]
[1720773905121,14.59,135.95,135.93,7.3566]
[1720773906301,14.59,135.96,135.93,7.3566]
[1720773907728,21.9453,135.96,135.92,7.3572]
[1720773908437,7.3553,135.96,135.92,7.3572]
[1720773908727,14.59,135.93,135.89,24.8957]
[1720773908930,14.59,135.92,135.9,7.358]
[1720773909723,20.0,135.95,135.93,7.3564]
[1720773909908,14.59,135.94,135.93,7.3564]
[1720773910118,20.0,135.95,135.93,7.3564]
[1720773910327,20.0,135.95,135.93,25.7481]
[1720773910553,14.59,135.96,135.93,25.7481]
[1720773911607,21.9451,135.96,135.93,18.3917]
[1720773912658,7.3545,135.98,135.93,18.3917]
[1720773912815,14.59,135.96,135.93,25.7482]
[1720773913215,7.3542,135.98,135.94,7.356]
[1720773913429,14.59,135.97,135.94,8.82666056]
[1720773913737,14.59,135.97,135.94,7.356]
[1720773914318,14.59,135.97,135.93,27.2185362]
[1720773914953,7.69779701,135.99,135.97,7.3543]
[1720773915120,14.59,136.01,135.97,7.3543]
[1720773915438,14.59,136.01,135.97,25.7405]
[1720773917332,14.59,136.01,135.98,7.3539]
[1720773918254,14.59,136.0,135.97,18.3862]
[1720773918422,14.59,135.99,135.97,18.3862]
[1720773918825,14.59,135.99,135.97,25.7406]
[1720773919029,14.59,136.0,135.98,7.354]
[1720773919437,14.59,136.01,135.98,7.354]
[1720773920862,7.69471627,136.03,135.99,18.3833]
[1720773921059,21.9416,136.03,135.99,25.7366]
[1720773921232,14.59,136.02,135.99,25.7366]
[1720773923037,14.59,136.01,135.98,7.3538]
[1720773923239,14.59,136.0,135.98,7.3538]
[1720773924635,14.59,136.0,135.97,7.3543]
[1720773924937,14.59,135.99,135.97,7.3543]
[1720773925536,14.59,135.98,135.96,18.3867]
[1720773925737,14.59,135.98,135.96,25.7417]
[1720773925936,18.3784,136.03,135.96,25.7417]
[1720773925937,14.59,135.99,135.96,25.7417]
[1720773926560,14.59,135.98,135.96,25.7417]
[1720773927478,14.59,136.0,135.97,7.3544]
[1720773928276,12.53003153,136.04,135.97,7.3544]
[1720773928277,7.352,136.02,135.97,7.3544]
[1720773928444,14.59,136.0,135.97,7.3544]
[1720773929269,27.3525,136.01,135.97,7.3544]
[1720773929472,14.59,135.98,135.96,18.3867]
[1720773933165,14.59,135.99,135.96,18.3867]
[1720773933881,14.59,135.99,135.96,25.7416]
[1720773934663,21.9433,136.0,135.96,25.7416]
[1720773934868,35.04688593,136.01,135.97,7.3545]
[1720773935199,14.59,136.0,135.97,7.3545]
[1720773935966,14.59,136.0,135.96,25.7417]
[1720773935967,21.943,136.0,135.96,25.7417]
[1720773937876,14.59,135.98,135.96,18.3867]
[1720773940487,21.9435,135.99,135.96,18.3867]
[1720773942062,21.944,135.98,135.94,13.6806]
[1720773942267,14.59,135.97,135.94,13.6806]
[1720773942462,14.59,135.97,135.94,7.3557]
[1720773944961,14.59,135.97,135.95,7.3556]
[1720773946592,10.0,135.99,135.93,18.3906]
[1720773946769,14.59,135.94,135.9,18.3948]
[1720773946967,7.3557,135.95,135.91,7.3577]
[1720773947164,14.59,135.93,135.91,7.3577]
[1720773949398,14.59,135.93,135.92,7.3572]
[1720773949694,14.59,135.94,135.92,7.3572]
[1720773950006,14.59,135.97,135.94,7.3561]
[1720773950175,14.59,135.97,135.95,7.3556]
[1720773950568,14.59,135.99,135.97,7.3544]
[1720773950792,14.59,135.99,135.95,18.3877]
[1720773951295,14.59,135.99,135.96,7.355]
[1720773951875,7.69321344,136.0,135.97,7.3544]
[1720773952069,14.59,136.0,135.95,32.9777]
[1720773952300,41.9435,135.99,135.95,25.7429]
[1720773952975,34.59,135.99,135.95,25.7429]
[1720773953375,7.6934872,136.01,135.97,32.9762]
[1720773953597,9.95832098,136.02,135.98,1.47057413]
[1720773954472,20.0,136.01,135.98,8.82437413]
[1720773954692,20.0,136.01,135.98,1.47057413]
[1720773954989,27.3524,136.01,135.98,1.47057413]
[1720773955295,27.3524,136.01,135.99,1.47046599]
[1720773955671,27.3524,136.01,135.97,25.7406]
[1720773956094,7.3535,135.99,135.95,7.3551]
[1720773956277,7.3535,135.99,135.94,25.7453]
[1720773956278,21.9435,135.99,135.94,25.7453]
[1720773956479,14.59,135.98,135.94,25.7453]
[1720773956902,14.59,135.98,135.95,7.3555]
[1720773957189,21.944,135.98,135.94,25.7455]
[1720773957976,14.59,135.97,135.94,18.3894]
[1720773958179,15.5857,136.0,135.91,25.7508]
[1720773958381,14.59,135.95,135.91,18.3936]
[1720773958891,21.9451,135.96,135.91,18.3936]
[1720773959183,7.3546,135.97,135.92,7.3569]
[1720773959396,14.59,135.96,135.92,8.82813585]
[1720773960172,14.59,135.96,135.91,25.7512]
[1720773960378,14.59,135.95,135.91,25.7512]
[1720773960577,14.59,135.93,135.9,7.3583]
[1720773961105,21.9467,135.93,135.89,7.3586]
[1720773961406,7.3555,135.96,135.9,18.3954]
[1720773961578,34.59,135.95,135.92,7.3571]
[1720773961901,20.0,135.95,135.92,7.3571]
[1720773962197,7.3546,135.97,135.93,7.3566]
[1720773962401,79.59,135.96,135.92,25.7499]
[1720773962714,21.9456,135.95,135.91,1.47132336]
[1720773962882,14.59,135.94,135.9,7.3581]
[1720773963483,14.59,135.94,135.91,7.3576]
[1720773963794,86.9451,135.96,135.92,7.3571]
[1720773965001,7.3546,135.97,135.93,7.3566]
[1720773965178,7.3546,135.97,135.93,21.9466]
[1720773965779,21.9441,135.98,135.94,7.3561]
[1720773966095,7.3541,135.98,135.94,8.14391637]
[1720773966485,7.3541,135.98,135.94,22.73391637]
[1720773967495,7.3545,135.97,135.94,0.78781637]
[1720773967808,7.3551,135.96,135.94,0.78781637]
[1720773967983,7.3551,135.96,135.93,25.18333145]
[1720773968408,21.9447,135.97,135.93,32.53983145]
[1720773969000,7.3547,135.97,135.93,47.12983145]
[1720773969608,21.9443,135.98,135.94,7.356]
[1720773970109,7.3546,135.97,135.93,47.12993145]
[1720773970313,15.5857,136.0,135.94,0.8315269]
[1720773970512,20.0,135.99,135.94,0.8315269]
[1720773970700,7.3548,135.97,135.93,38.985]
[1720773971089,7.3552,135.96,135.93,24.395]
[1720773971714,7.69562441,136.01,135.95,14.59]
[1720773971906,29.63812441,136.01,135.97,25.7406]
[1720773972109,21.9425,136.01,135.97,18.3862]
[1720773972608,7.353,136.0,135.96,14.59]
[1720773972809,7.3536,135.99,135.96,0.87862984]
[1720773974517,7.3541,135.98,135.96,0.87862984]
[1720773974819,14.59,136.0,135.96,1.47082028]
[1720773975389,24.34761502,136.03,135.99,7.353]
[1720773975587,21.9414,136.03,135.99,0.73001658]
[1720773975924,21.9411,136.04,135.99,8.82339747]
[1720773976107,7.3511,136.04,136.0,7.3528]
[1720773976412,7.3501,136.06,136.01,8.82228123]
[1720773976714,14.59,136.05,136.01,8.82228123]
[1720773976922,8.54184134,136.07,135.99,15.5753]
[1720773977101,8.54184134,136.07,136.03,14.59]
[1720773977296,8.1991325,136.07,136.01,18.3802]
[1720773977504,21.9397,136.06,136.02,1.46934209]
[1720773977803,21.9397,136.06,136.01,25.7325]
[1720773978198,8.1990325,136.07,136.02,7.3517]
[1720773978399,14.59,136.06,136.02,7.3517]
[1720773978593,8.1990325,136.07,136.02,7.3517]
[1720773978805,7.3498,136.06,136.01,25.7324]
[1720773979214,0.8499325,136.07,136.02,7.3518]
[1720773979406,8.1992325,136.07,136.02,7.3518]
[1720773981211,8.1992325,136.07,135.99,15.5753]
[1720773981212,0.8499325,136.07,136.06,7.3496]
[1720773981400,0.8499325,136.07,136.05,25.7248]
[1720773981601,0.8499325,136.07,136.06,7.3496]
[1720773983119,0.8499325,136.07,136.06,8.81934335]
[1720773985113,0.8499325,136.07,136.06,7.3496]
[1720773986425,0.8499325,136.07,136.05,25.7247]
[1720773987030,0.8499325,136.07,136.06,7.3496]
[1720773987205,0.8499325,136.07,136.05,25.7247]
[1720773987819,0.8499325,136.07,136.06,7.3496]
[1720773988232,0.8499325,136.07,136.05,18.3746]
[1720773988233,0.8499325,136.07,136.05,25.7247]
[1720773988748,0.8499325,136.07,136.04,7.3503]
[1720773989100,0.8499325,136.07,136.03,7.3511]
[1720773989329,0.8499325,136.07,136.02,18.3787]
[1720773989529,0.8499325,136.07,136.05,7.3502]